[Event "Late-Titled-Tuesday-Blitz-April-30-2024"]
[Site "Chess.com"]
[Date "2024.04.30"]
[Round "2"]
[White "SCIM"]
[Black "super_emi_26"]
[Result "0-1"]
[WhiteElo "2542"]
[BlackElo "2759"]
[TimeControl "180+1"]
[EndTime "14:20:51 PDT"]
[Termination "super_emi_26 won by resignation"]

1. d4 {[%clk 0:03:00.9]} 1... g6 {[%clk 0:03:00.9]} 2. c4 {[%clk 0:02:59.1]}
2... Bg7 {[%clk 0:03:01.5]} 3. Nc3 {[%clk 0:02:58.8]} 3... d6 {[%clk 0:03:01]}
4. e4 {[%clk 0:02:57.4]} 4... b6 {[%clk 0:03:00]} 5. Be3 {[%clk 0:02:53.9]} 5...
Bb7 {[%clk 0:03:00.1]} 6. f3 {[%clk 0:02:53.7]} 6... e6 {[%clk 0:03:00.3]} 7.
Nh3 {[%clk 0:02:48.2]} 7... Nd7 {[%clk 0:02:59]} 8. Nf2 {[%clk 0:02:45.7]} 8...
Ne7 {[%clk 0:02:58.4]} 9. Be2 {[%clk 0:02:44]} 9... a6 {[%clk 0:02:56.2]} 10.
O-O {[%clk 0:02:44.1]} 10... O-O {[%clk 0:02:56.1]} 11. Qd2 {[%clk 0:02:43.9]}
11... e5 {[%clk 0:02:42.3]} 12. Rad1 {[%clk 0:02:37.9]} 12... Nc6 {[%clk
0:02:40.3]} 13. d5 {[%clk 0:02:35.8]} 13... Nd4 {[%clk 0:02:40.4]} 14. Bd3
{[%clk 0:02:30.7]} 14... f5 {[%clk 0:02:27.3]} 15. exf5 {[%clk 0:02:25.5]} 15...
gxf5 {[%clk 0:02:24.6]} 16. Ne2 {[%clk 0:02:02.2]} 16... Nxe2+ {[%clk
0:02:18.5]} 17. Qxe2 {[%clk 0:02:01.2]} 17... Qf6 {[%clk 0:01:49.8]} 18. Bb1
{[%clk 0:01:48.7]} 18... Rae8 {[%clk 0:01:48.3]} 19. Bd2 {[%clk 0:01:39.5]}
19... a5 {[%clk 0:01:35.8]} 20. Bc3 {[%clk 0:01:33]} 20... Nc5 {[%clk
0:01:29.4]} 21. g4 {[%clk 0:01:32.5]} 21... Bc8 {[%clk 0:01:29.1]} 22. Bxf5
{[%clk 0:01:17]} 22... Bxf5 {[%clk 0:01:30]} 23. gxf5 {[%clk 0:01:17.7]} 23...
Qxf5 {[%clk 0:01:29.3]} 24. Ne4 {[%clk 0:01:18.1]} 24... Bh6 {[%clk 0:01:24.3]}
25. Kh1 {[%clk 0:01:12.6]} 25... Kh8 {[%clk 0:01:23.8]} 26. Nxc5 {[%clk
0:01:08.6]} 26... bxc5 {[%clk 0:01:24.7]} 27. Qe4 {[%clk 0:01:08.1]} 27... Qh5
{[%clk 0:01:13.2]} 28. Qg4 {[%clk 0:00:59.5]} 28... Qf7 {[%clk 0:01:12.7]} 29.
Bxa5 {[%clk 0:00:50.9]} 29... Ra8 {[%clk 0:01:12.8]} 30. Bc3 {[%clk 0:00:49]}
30... Rxa2 {[%clk 0:01:09]} 31. Rde1 {[%clk 0:00:46.9]} 31... Raa8 {[%clk
0:01:06.9]} 32. Rf2 {[%clk 0:00:39.2]} 32... Rg8 {[%clk 0:01:01.7]} 33. Qh3
{[%clk 0:00:34.4]} 33... Bf4 {[%clk 0:01:00.4]} 34. Rg2 {[%clk 0:00:31.8]} 34...
Rxg2 {[%clk 0:01:00.4]} 35. Qxg2 {[%clk 0:00:31.8]} 35... Rg8 {[%clk 0:01:01.1]}
36. Qh3 {[%clk 0:00:31.7]} 36... Qg6 {[%clk 0:01:00.6]} 37. Rf1 {[%clk
0:00:24.5]} 37... Qd3 {[%clk 0:00:56.3]} 38. Rg1 {[%clk 0:00:17]} 38... Rxg1+
{[%clk 0:00:55.4]} 39. Kxg1 {[%clk 0:00:17.9]} 39... Be3+ {[%clk 0:00:54.9]} 40.
Kg2 {[%clk 0:00:17.8]} 40... Qc2+ {[%clk 0:00:44.9]} 41. Kg3 {[%clk 0:00:16.2]}
41... Qg6+ {[%clk 0:00:39.4]} 42. Qg4 {[%clk 0:00:15.2]} 42... Bf4+ {[%clk
0:00:38.9]} 43. Kh3 {[%clk 0:00:13.2]} 43... Qh6+ {[%clk 0:00:38.8]} 44. Qh4
{[%clk 0:00:13.3]} 44... Qf8 {[%clk 0:00:38.9]} 45. Qg4 {[%clk 0:00:12.1]} 45...
Qf7 {[%clk 0:00:37.9]} 46. Qc8+ {[%clk 0:00:10.9]} 46... Kg7 {[%clk 0:00:38.4]}
47. Qg4+ {[%clk 0:00:11]} 47... Kh8 {[%clk 0:00:37.6]} 48. b3 {[%clk 0:00:10.6]}
48... h6 {[%clk 0:00:34.2]} 49. Qc8+ {[%clk 0:00:10.3]} 49... Kh7 {[%clk
0:00:34.7]} 50. Qg4 {[%clk 0:00:11]} 50... h5 {[%clk 0:00:34.1]} 51. Qc8 {[%clk
0:00:08.8]} 51... Kh6 {[%clk 0:00:30.1]} 52. Be1 {[%clk 0:00:08.2]} 52... Kg6
{[%clk 0:00:28.4]} 53. Bh4 {[%clk 0:00:08.3]} 53... Bh6 {[%clk 0:00:27.8]} 54.
Kg2 {[%clk 0:00:05.4]} 54... Qf4 {[%clk 0:00:21.9]} 55. Qe6+ {[%clk 0:00:04.7]}
55... Kh7 {[%clk 0:00:20.7]} 56. Qd7+ {[%clk 0:00:04.5]} 56... Bg7 {[%clk
0:00:20.6]} 57. Qxc7 {[%clk 0:00:04.7]} 57... Qd2+ {[%clk 0:00:20.8]} 58. Bf2
{[%clk 0:00:04.3]} 58... Qg5+ {[%clk 0:00:16.6]} 59. Kf1 {[%clk 0:00:03.6]}
59... Qc1+ {[%clk 0:00:16.6]} 60. Kg2 {[%clk 0:00:04.2]} 60... Qg5+ {[%clk
0:00:16.8]} 61. Bg3 {[%clk 0:00:04.5]} 61... h4 {[%clk 0:00:16.5]} 62. Qd7
{[%clk 0:00:02.2]} 62... hxg3 {[%clk 0:00:16.4]} 63. hxg3 {[%clk 0:00:02.9]}
63... Qd2+ {[%clk 0:00:13.9]} 64. Kh3 {[%clk 0:00:02.8]} 64... Qh6+ {[%clk
0:00:14.4]} 65. Kg2 {[%clk 0:00:03.3]} 65... Qg6 {[%clk 0:00:14.6]} 66. Qh3+
{[%clk 0:00:03.1]} 66... Kg8 {[%clk 0:00:13.8]} 67. Qd7 {[%clk 0:00:04]} 67...
Bf8 {[%clk 0:00:12.6]} 68. Qh3 {[%clk 0:00:03.7]} 68... Qc2+ {[%clk 0:00:12.5]}
69. Kg1 {[%clk 0:00:02.5]} 69... Qb1+ {[%clk 0:00:12.5]} 70. Kg2 {[%clk
0:00:02.1]} 70... Qg6 {[%clk 0:00:13.2]} 71. Qd7 {[%clk 0:00:01.5]} 71... Qf6
{[%clk 0:00:12.6]} 72. Kh3 {[%clk 0:00:02]} 72... Be7 {[%clk 0:00:12.8]} 73. Kg2
{[%clk 0:00:02.5]} 73... Kf7 {[%clk 0:00:12.9]} 74. Qc8 {[%clk 0:00:02.5]} 74...
Qg6 {[%clk 0:00:12.7]} 75. Qh3 {[%clk 0:00:03.4]} 75... Kg7 {[%clk 0:00:10.9]}
76. Kg1 {[%clk 0:00:03.7]} 76... Qg5 {[%clk 0:00:10.8]} 77. Kg2 {[%clk
0:00:01.7]} 77... e4 {[%clk 0:00:09.4]} 78. Kg1 {[%clk 0:00:02.2]} 78... Qe3+
{[%clk 0:00:08.3]} 79. Kh2 {[%clk 0:00:01.7]} 79... Qf2+ {[%clk 0:00:08.2]} 80.
Qg2 {[%clk 0:00:01.1]} 80... Qxf3 {[%clk 0:00:08.4]} 81. Qxf3 {[%clk 0:00:00.9]}
81... exf3 {[%clk 0:00:09.3]} 82. Kg1 {[%clk 0:00:01.5]} 82... Kf6 {[%clk
0:00:09.2]} 83. Kf2 {[%clk 0:00:02.4]} 83... Ke5 {[%clk 0:00:08.7]} 84. Kxf3
{[%clk 0:00:03.3]} 84... Kd4 {[%clk 0:00:09]} 85. g4 {[%clk 0:00:04.2]} 85...
Kc3 {[%clk 0:00:09.1]} 86. Ke4 {[%clk 0:00:04.7]} 86... Kxb3 {[%clk 0:00:09.6]}
87. Kf5 {[%clk 0:00:05.3]} 87... Kxc4 {[%clk 0:00:09]} 88. Ke6 {[%clk
0:00:06.2]} 88... Bf8 {[%clk 0:00:09.2]} 89. g5 {[%clk 0:00:06.1]} 89... Kd4
{[%clk 0:00:06.2]} 90. Kf7 {[%clk 0:00:06]} 90... c4 {[%clk 0:00:06.8]} 91. Kxf8
{[%clk 0:00:06.1]} 91... c3 {[%clk 0:00:07.4]} 92. g6 {[%clk 0:00:06.7]} 92...
c2 {[%clk 0:00:08.1]} 93. g7 {[%clk 0:00:07.6]} 93... c1=Q {[%clk 0:00:08.5]}
94. g8=Q {[%clk 0:00:07.8]} 94... Qc8+ {[%clk 0:00:09.1]} 95. Kf7 {[%clk
0:00:08.2]} 95... Qxg8+ {[%clk 0:00:10]} 96. Kxg8 {[%clk 0:00:09.1]} 96... Kxd5
{[%clk 0:00:10.8]} 0-1

[Event "Late-Titled-Tuesday-Blitz-April-30-2024"]
[Site "Chess.com"]
[Date "2024.04.30"]
[Round "3"]
[White "GambitGiesbergen"]
[Black "ArmanGhevondyanchess"]
[Result "1-0"]
[WhiteElo "2305"]
[BlackElo "2510"]
[TimeControl "180+1"]
[EndTime "14:23:54 PDT"]
[Termination "GambitGiesbergen won by resignation"]

1. e4 {[%clk 0:03:00.9]} 1... c6 {[%clk 0:02:54.3]} 2. Nf3 {[%clk 0:03:01.8]}
2... d5 {[%clk 0:02:54.4]} 3. d3 {[%clk 0:03:02.2]} 3... dxe4 {[%clk 0:02:52.1]}
4. dxe4 {[%clk 0:03:03.1]} 4... Qxd1+ {[%clk 0:02:52.8]} 5. Kxd1 {[%clk
0:03:03.5]} 5... Bg4 {[%clk 0:02:53.3]} 6. Nd2 {[%clk 0:03:03.1]} 6... Bxf3+
{[%clk 0:02:53.9]} 7. Nxf3 {[%clk 0:03:03.2]} 7... Nd7 {[%clk 0:02:54.8]} 8. Bf4
{[%clk 0:03:02.3]} 8... e5 {[%clk 0:02:54.8]} 9. Nxe5 {[%clk 0:02:57.1]} 9...
Nxe5 {[%clk 0:02:53.1]} 10. Bxe5 {[%clk 0:02:56.9]} 10... O-O-O+ {[%clk
0:02:54]} 11. Ke1 {[%clk 0:02:53.5]} 11... Re8 {[%clk 0:02:53.3]} 12. Bc3 {[%clk
0:02:49.4]} 12... Rxe4+ {[%clk 0:02:52.6]} 13. Be2 {[%clk 0:02:50.3]} 13... Bb4
{[%clk 0:02:52.9]} 14. Bxb4 {[%clk 0:02:49.2]} 14... Rxb4 {[%clk 0:02:53]} 15.
b3 {[%clk 0:02:46.2]} 15... Re4 {[%clk 0:02:49.3]} 16. Kd2 {[%clk 0:02:45.9]}
16... Nf6 {[%clk 0:02:49.1]} 17. Bd3 {[%clk 0:02:46]} 17... Rd8 {[%clk
0:02:47.7]} 18. g3 {[%clk 0:02:41]} 18... Ng4 {[%clk 0:02:42.7]} 19. f3 {[%clk
0:02:37.7]} 19... Rxd3+ {[%clk 0:02:36.4]} 20. cxd3 {[%clk 0:02:35.5]} 1-0

[Event "Late-Titled-Tuesday-Blitz-April-30-2024"]
[Site "Chess.com"]
[Date "2024.04.30"]
[Round "3"]
[White "vladoboch"]
[Black "KogotBobra17"]
[Result "0-1"]
[WhiteElo "2500"]
[BlackElo "2769"]
[TimeControl "180+1"]
[EndTime "14:24:41 PDT"]
[Termination "KogotBobra17 won by resignation"]

1. e4 {[%clk 0:03:00.9]} 1... c5 {[%clk 0:03:00.2]} 2. Nf3 {[%clk 0:03:00.7]}
2... Nc6 {[%clk 0:03:00.8]} 3. Bb5 {[%clk 0:02:55.7]} 3... g5 {[%clk 0:03:00.7]}
4. Bxc6 {[%clk 0:02:41.5]} 4... dxc6 {[%clk 0:03:01.6]} 5. Nxg5 {[%clk
0:02:40.6]} 5... Nf6 {[%clk 0:03:02.2]} 6. d3 {[%clk 0:02:38.6]} 6... Rg8 {[%clk
0:03:02.5]} 7. e5 {[%clk 0:02:19.6]} 7... h6 {[%clk 0:03:01.4]} 8. Nxf7 {[%clk
0:02:11.2]} 8... Qd5 {[%clk 0:03:01.3]} 9. exf6 {[%clk 0:02:12.1]} 9... Qxg2
{[%clk 0:03:01.3]} 10. Rf1 {[%clk 0:02:01.5]} 10... Bh3 {[%clk 0:03:01.2]} 11.
Nd2 {[%clk 0:01:53]} 11... exf6 {[%clk 0:03:00.5]} 12. Qh5 {[%clk 0:01:47.2]}
12... Kd7 {[%clk 0:02:58.8]} 13. Qf3 {[%clk 0:01:21.4]} 13... Re8+ {[%clk
0:02:54.4]} 14. Kd1 {[%clk 0:01:18.8]} 14... Bg4 {[%clk 0:02:50.1]} 0-1

[Event "Late-Titled-Tuesday-Blitz-April-30-2024"]
[Site "Chess.com"]
[Date "2024.04.30"]
[Round "3"]
[White "Arystanner"]
[Black "HandKnit"]
[Result "1-0"]
[WhiteElo "2852"]
[BlackElo "2509"]
[TimeControl "180+1"]
[EndTime "14:24:44 PDT"]
[Termination "Arystanner won by resignation"]

1. d4 {[%clk 0:02:54.7]} 1... Nf6 {[%clk 0:02:59]} 2. c4 {[%clk 0:02:55.4]} 2...
e6 {[%clk 0:02:58.4]} 3. Nf3 {[%clk 0:02:55.5]} 3... d5 {[%clk 0:02:59]} 4. Nc3
{[%clk 0:02:55.7]} 4... c5 {[%clk 0:02:56.4]} 5. e3 {[%clk 0:02:55.7]} 5... Nc6
{[%clk 0:02:54.9]} 6. cxd5 {[%clk 0:02:56.2]} 6... Nxd5 {[%clk 0:02:54.7]} 7.
Bd3 {[%clk 0:02:55.2]} 7... cxd4 {[%clk 0:02:53]} 8. exd4 {[%clk 0:02:56.1]}
8... Nxc3 {[%clk 0:02:53.3]} 9. bxc3 {[%clk 0:02:56.3]} 9... Be7 {[%clk
0:02:52.4]} 10. O-O {[%clk 0:02:57]} 10... O-O {[%clk 0:02:52.6]} 11. Re1 {[%clk
0:02:52]} 11... b6 {[%clk 0:02:51]} 12. Bb2 {[%clk 0:02:48.5]} 12... Bb7 {[%clk
0:02:49.9]} 13. c4 {[%clk 0:02:49.2]} 13... Rc8 {[%clk 0:02:44.3]} 14. Rc1
{[%clk 0:02:49.6]} 14... Bf6 {[%clk 0:02:36.3]} 15. Be4 {[%clk 0:02:42.6]} 15...
Qc7 {[%clk 0:02:29.2]} 16. Ba3 {[%clk 0:02:33.8]} 16... Rfd8 {[%clk 0:02:27]}
17. d5 {[%clk 0:02:34.5]} 17... Ne5 {[%clk 0:02:10.6]} 18. d6 {[%clk 0:02:26.5]}
18... Nxf3+ {[%clk 0:02:08.1]} 19. Qxf3 {[%clk 0:02:25.2]} 19... Bxe4 {[%clk
0:02:08]} 20. dxc7 {[%clk 0:02:25]} 20... Bxf3 {[%clk 0:02:07.1]} 21. cxd8=Q+
{[%clk 0:02:25.4]} 21... Bxd8 {[%clk 0:02:05.3]} 22. gxf3 {[%clk 0:02:26.3]}
22... g6 {[%clk 0:02:00.3]} 23. Bd6 {[%clk 0:02:25.9]} 1-0

[Event "Late-Titled-Tuesday-Blitz-April-30-2024"]
[Site "Chess.com"]
[Date "2024.04.30"]
[Round "3"]
[White "Langua_Chess"]
[Black "campochess"]
[Result "1-0"]
[WhiteElo "2422"]
[BlackElo "2163"]
[TimeControl "180+1"]
[EndTime "14:25:28 PDT"]
[Termination "Langua_Chess won by resignation"]

1. a3 {[%clk 0:03:00.9]} 1... d5 {[%clk 0:02:52.6]} 2. Nf3 {[%clk 0:03:00.8]}
2... Nc6 {[%clk 0:02:51.2]} 3. d4 {[%clk 0:03:00.3]} 3... g6 {[%clk 0:02:50.7]}
4. c4 {[%clk 0:03:00.2]} 4... Nf6 {[%clk 0:02:46.5]} 5. cxd5 {[%clk 0:02:59.5]}
5... Nxd5 {[%clk 0:02:46.1]} 6. e4 {[%clk 0:02:59.2]} 6... Nf6 {[%clk
0:02:45.7]} 7. d5 {[%clk 0:02:59.8]} 7... Nb8 {[%clk 0:02:44.9]} 8. Nc3 {[%clk
0:02:59.2]} 8... Bg7 {[%clk 0:02:41.4]} 9. h3 {[%clk 0:02:52.9]} 9... O-O {[%clk
0:02:41.1]} 10. e5 {[%clk 0:02:52.2]} 10... Nfd7 {[%clk 0:02:39]} 11. Bf4 {[%clk
0:02:52.4]} 11... Nb6 {[%clk 0:02:38.6]} 12. Be2 {[%clk 0:02:45]} 12... f6
{[%clk 0:02:37.7]} 13. e6 {[%clk 0:02:41]} 13... f5 {[%clk 0:02:33.2]} 14. Ne5
{[%clk 0:02:30.5]} 14... c6 {[%clk 0:02:24.2]} 15. Nf7 {[%clk 0:02:29.8]} 15...
Qe8 {[%clk 0:02:14.9]} 16. O-O {[%clk 0:02:20.6]} 16... cxd5 {[%clk 0:02:13.4]}
17. Nxd5 {[%clk 0:02:21.5]} 17... Bxe6 {[%clk 0:02:09.8]} 18. Nxb6 {[%clk
0:02:08.9]} 18... axb6 {[%clk 0:02:06.6]} 19. Ng5 {[%clk 0:02:09.6]} 19... Qc8
{[%clk 0:01:47.7]} 20. Rc1 {[%clk 0:02:05.7]} 20... Nc6 {[%clk 0:01:47.4]} 21.
Nxe6 {[%clk 0:02:04.6]} 1-0

[Event "Late-Titled-Tuesday-Blitz-April-30-2024"]
[Site "Chess.com"]
[Date "2024.04.30"]
[Round "3"]
[White "HamedWafa4"]
[Black "Casper"]
[Result "1-0"]
[WhiteElo "2728"]
[BlackElo "2491"]
[TimeControl "180+1"]
[EndTime "14:25:38 PDT"]
[Termination "HamedWafa4 won by resignation"]

1. e4 {[%clk 0:03:00.9]} 1... c6 {[%clk 0:02:59.4]} 2. d4 {[%clk 0:03:00.8]}
2... d5 {[%clk 0:03:00.3]} 3. exd5 {[%clk 0:03:00.6]} 3... cxd5 {[%clk
0:03:01.2]} 4. Bd3 {[%clk 0:03:01]} 4... g6 {[%clk 0:03:00.2]} 5. c3 {[%clk
0:03:00.5]} 5... Bg7 {[%clk 0:03:01.1]} 6. Nf3 {[%clk 0:03:00.6]} 6... Nc6
{[%clk 0:03:00.8]} 7. O-O {[%clk 0:03:00.8]} 7... Bg4 {[%clk 0:03:00.9]} 8. h3
{[%clk 0:03:00.8]} 8... Bxf3 {[%clk 0:03:00.4]} 9. Qxf3 {[%clk 0:03:01.7]} 9...
Nf6 {[%clk 0:03:00.9]} 10. Bf4 {[%clk 0:03:01]} 10... O-O {[%clk 0:03:01.2]} 11.
Nd2 {[%clk 0:03:01.2]} 11... a6 {[%clk 0:03:01.8]} 12. a4 {[%clk 0:03:01.2]}
12... Re8 {[%clk 0:02:56.4]} 13. Rfe1 {[%clk 0:03:00.9]} 13... e6 {[%clk
0:02:53.4]} 14. b4 {[%clk 0:02:58.4]} 14... Nd7 {[%clk 0:02:50.6]} 15. Bg3
{[%clk 0:02:54.3]} 15... Qg5 {[%clk 0:02:43]} 16. Nb3 {[%clk 0:02:49.9]} 16...
b6 {[%clk 0:02:33.8]} 17. a5 {[%clk 0:02:48.5]} 17... bxa5 {[%clk 0:02:23.5]}
18. Nxa5 {[%clk 0:02:48.5]} 18... Rec8 {[%clk 0:02:22.1]} 19. h4 {[%clk
0:02:38.5]} 19... Qe7 {[%clk 0:02:07]} 20. Nb3 {[%clk 0:02:25.9]} 20... h5
{[%clk 0:01:55.8]} 21. Bxa6 {[%clk 0:02:13.3]} 21... Re8 {[%clk 0:01:54.5]} 22.
Bb5 {[%clk 0:02:09]} 22... Rac8 {[%clk 0:01:51.1]} 23. Nc5 {[%clk 0:02:08.3]}
23... Bf6 {[%clk 0:01:34.1]} 24. Nxd7 {[%clk 0:01:59.8]} 1-0

[Event "Late-Titled-Tuesday-Blitz-April-30-2024"]
[Site "Chess.com"]
[Date "2024.04.30"]
[Round "3"]
[White "Payyappat"]
[Black "vanea_03"]
[Result "0-1"]
[WhiteElo "2501"]
[BlackElo "2795"]
[TimeControl "180+1"]
[EndTime "14:25:55 PDT"]
[Termination "vanea_03 won by resignation"]

1. e4 {[%clk 0:03:00.9]} 1... e5 {[%clk 0:02:59.3]} 2. Nf3 {[%clk 0:02:57.8]}
2... Nc6 {[%clk 0:02:59.7]} 3. Bc4 {[%clk 0:02:56.4]} 3... d6 {[%clk 0:03:00.2]}
4. d4 {[%clk 0:02:54.6]} 4... Bg4 {[%clk 0:02:57.9]} 5. Be3 {[%clk 0:02:52.2]}
5... exd4 {[%clk 0:02:53]} 6. Bxd4 {[%clk 0:02:53.1]} 6... Nxd4 {[%clk
0:02:52.5]} 7. Qxd4 {[%clk 0:02:50.5]} 7... Bxf3 {[%clk 0:02:48.3]} 8. Qd5
{[%clk 0:02:46.9]} 8... Qe7 {[%clk 0:02:22.3]} 9. Bb5+ {[%clk 0:02:41.7]} 9...
Kd8 {[%clk 0:02:14.1]} 10. gxf3 {[%clk 0:02:37.9]} 10... c6 {[%clk 0:02:13.9]}
11. Bxc6 {[%clk 0:02:31.7]} 11... bxc6 {[%clk 0:02:14.8]} 12. Qxc6 {[%clk
0:02:32.4]} 12... Rc8 {[%clk 0:02:14.9]} 13. Qd5 {[%clk 0:02:31.5]} 13... Nf6
{[%clk 0:02:08.6]} 14. Qd4 {[%clk 0:02:28.4]} 14... Qe5 {[%clk 0:01:37.8]} 15.
Qxe5 {[%clk 0:02:19.2]} 15... dxe5 {[%clk 0:01:37.5]} 16. Nc3 {[%clk 0:02:20.1]}
16... Bb4 {[%clk 0:01:36.9]} 17. O-O-O+ {[%clk 0:02:18.9]} 17... Ke7 {[%clk
0:01:36.2]} 18. Nd5+ {[%clk 0:02:16.8]} 18... Nxd5 {[%clk 0:01:36.1]} 19. Rxd5
{[%clk 0:02:17.7]} 19... f6 {[%clk 0:01:30.7]} 20. Rb5 {[%clk 0:02:12.2]} 20...
Bd6 {[%clk 0:01:26.9]} 21. Rd1 {[%clk 0:02:10.7]} 21... Rc7 {[%clk 0:01:26.2]}
22. b3 {[%clk 0:02:08]} 22... Bc5 {[%clk 0:01:24.6]} 23. Rd2 {[%clk 0:02:04.7]}
23... Rd8 {[%clk 0:01:23.3]} 24. Re2 {[%clk 0:01:58.8]} 24... Ba3+ {[%clk
0:01:21.9]} 0-1

[Event "Late-Titled-Tuesday-Blitz-April-30-2024"]
[Site "Chess.com"]
[Date "2024.04.30"]
[Round "3"]
[White "sergiochess83"]
[Black "chessisveryfun1264"]
[Result "1-0"]
[WhiteElo "2906"]
[BlackElo "2618"]
[TimeControl "180+1"]
[EndTime "14:26:12 PDT"]
[Termination "sergiochess83 won by resignation"]

1. d4 {[%clk 0:02:54.6]} 1... e6 {[%clk 0:03:00.9]} 2. c4 {[%clk 0:02:53.7]}
2... b6 {[%clk 0:02:52]} 3. e4 {[%clk 0:02:53.2]} 3... Bb4+ {[%clk 0:02:46]} 4.
Bd2 {[%clk 0:02:50.5]} 4... Bxd2+ {[%clk 0:02:46.5]} 5. Qxd2 {[%clk 0:02:48.9]}
5... d5 {[%clk 0:02:47.4]} 6. cxd5 {[%clk 0:02:43.5]} 6... exd5 {[%clk
0:02:48.3]} 7. exd5 {[%clk 0:02:44.1]} 7... Ne7 {[%clk 0:02:46.2]} 8. Nc3 {[%clk
0:02:32]} 8... O-O {[%clk 0:02:44.6]} 9. Be2 {[%clk 0:02:23.2]} 9... Nxd5 {[%clk
0:02:41.3]} 10. Nf3 {[%clk 0:02:18.6]} 10... Bb7 {[%clk 0:02:40.3]} 11. O-O
{[%clk 0:02:18.7]} 11... Nd7 {[%clk 0:02:39.8]} 12. Rfe1 {[%clk 0:02:18.1]}
12... N7f6 {[%clk 0:02:40]} 13. Ne5 {[%clk 0:02:18.2]} 13... a6 {[%clk
0:02:35.9]} 14. Bf3 {[%clk 0:02:18]} 14... Qd6 {[%clk 0:02:29.4]} 15. Rac1
{[%clk 0:02:17.5]} 15... Rfd8 {[%clk 0:02:26.3]} 16. h3 {[%clk 0:02:14.9]} 16...
Rac8 {[%clk 0:02:26.1]} 17. a3 {[%clk 0:02:12.6]} 17... c5 {[%clk 0:02:25.2]}
18. dxc5 {[%clk 0:02:09.3]} 18... Rxc5 {[%clk 0:02:26.1]} 19. Rcd1 {[%clk
0:01:56.2]} 19... Rcc8 {[%clk 0:01:59.4]} 20. Ng4 {[%clk 0:01:46.6]} 20... Qc7
{[%clk 0:01:45.9]} 21. Nxd5 {[%clk 0:01:10.2]} 21... Bxd5 {[%clk 0:01:44.8]} 22.
Nxf6+ {[%clk 0:01:09]} 1-0

[Event "Late-Titled-Tuesday-Blitz-April-30-2024"]
[Site "Chess.com"]
[Date "2024.04.30"]
[Round "3"]
[White "KorolDimitriy75"]
[Black "Ditman2007"]
[Result "0-1"]
[WhiteElo "2355"]
[BlackElo "2672"]
[TimeControl "180+1"]
[EndTime "14:26:39 PDT"]
[Termination "Ditman2007 won by resignation"]

1. d4 {[%clk 0:03:00.9]} 1... Nf6 {[%clk 0:02:59.5]} 2. c4 {[%clk 0:03:01.4]}
2... c5 {[%clk 0:03:00.1]} 3. d5 {[%clk 0:03:01.1]} 3... b5 {[%clk 0:03:00.8]}
4. Nd2 {[%clk 0:03:01.4]} 4... bxc4 {[%clk 0:02:55.7]} 5. e4 {[%clk 0:03:01.3]}
5... c3 {[%clk 0:02:56.4]} 6. bxc3 {[%clk 0:03:01.2]} 6... d6 {[%clk 0:02:57.1]}
7. Qc2 {[%clk 0:02:59.6]} 7... g6 {[%clk 0:02:57.6]} 8. Bd3 {[%clk 0:02:56]}
8... Bg7 {[%clk 0:02:58.1]} 9. Ngf3 {[%clk 0:02:54.6]} 9... O-O {[%clk
0:02:58.7]} 10. O-O {[%clk 0:02:53.5]} 10... Ba6 {[%clk 0:02:58.5]} 11. Rb1
{[%clk 0:02:44.8]} 11... Bxd3 {[%clk 0:02:57.9]} 12. Qxd3 {[%clk 0:02:45.7]}
12... Nbd7 {[%clk 0:02:57.8]} 13. c4 {[%clk 0:01:58.3]} 13... Qa5 {[%clk
0:02:49.5]} 14. a3 {[%clk 0:01:28.3]} 14... Rfb8 {[%clk 0:02:47.4]} 15. Bb2
{[%clk 0:01:28.2]} 15... Rb6 {[%clk 0:02:43.8]} 16. Bc3 {[%clk 0:00:55.8]} 16...
Qa6 {[%clk 0:02:43.8]} 17. e5 {[%clk 0:00:49.2]} 17... dxe5 {[%clk 0:02:39.3]}
18. Nxe5 {[%clk 0:00:49]} 18... Rab8 {[%clk 0:02:36]} 19. Nxd7 {[%clk
0:00:38.9]} 19... Nxd7 {[%clk 0:02:36.9]} 20. Bxg7 {[%clk 0:00:37.2]} 20... Kxg7
{[%clk 0:02:37.8]} 21. Rbe1 {[%clk 0:00:28.1]} 21... Re8 {[%clk 0:02:26.6]} 22.
Re3 {[%clk 0:00:28]} 22... Rb2 {[%clk 0:02:16.9]} 23. Qc3+ {[%clk 0:00:23]}
23... Qf6 {[%clk 0:02:15.5]} 24. Qxb2 {[%clk 0:00:23.9]} 24... Qxb2 {[%clk
0:02:15]} 0-1

[Event "Late-Titled-Tuesday-Blitz-April-30-2024"]
[Site "Chess.com"]
[Date "2024.04.30"]
[Round "3"]
[White "FoggyMorning"]
[Black "nekotyanof"]
[Result "0-1"]
[WhiteElo "2481"]
[BlackElo "2707"]
[TimeControl "180+1"]
[EndTime "14:26:39 PDT"]
[Termination "nekotyanof won by resignation"]

1. e4 {[%clk 0:03:00.9]} 1... c5 {[%clk 0:02:57.7]} 2. Nf3 {[%clk 0:03:00.7]}
2... Nc6 {[%clk 0:02:57.5]} 3. d4 {[%clk 0:03:01.3]} 3... cxd4 {[%clk
0:02:57.1]} 4. Nxd4 {[%clk 0:03:02.2]} 4... Nf6 {[%clk 0:02:57.7]} 5. Nc3 {[%clk
0:03:02.7]} 5... e5 {[%clk 0:02:58.1]} 6. Ndb5 {[%clk 0:03:03.3]} 6... d6 {[%clk
0:02:58.7]} 7. Bg5 {[%clk 0:03:03.8]} 7... a6 {[%clk 0:02:59.4]} 8. Na3 {[%clk
0:03:03.6]} 8... b5 {[%clk 0:02:59.8]} 9. Nd5 {[%clk 0:03:03.8]} 9... Be7 {[%clk
0:03:00.5]} 10. Bxf6 {[%clk 0:03:04.4]} 10... Bxf6 {[%clk 0:03:00.2]} 11. c4
{[%clk 0:03:05.3]} 11... Nd4 {[%clk 0:02:56.5]} 12. cxb5 {[%clk 0:03:05]} 12...
Bb7 {[%clk 0:02:56.9]} 13. Bc4 {[%clk 0:03:00.8]} 13... axb5 {[%clk 0:02:57.2]}
14. Nxb5 {[%clk 0:02:55.5]} 14... Bxd5 {[%clk 0:02:57.4]} 15. exd5 {[%clk
0:02:46.9]} 15... Qa5+ {[%clk 0:02:56.9]} 16. Nc3 {[%clk 0:02:46]} 16... Qb4
{[%clk 0:02:53.7]} 17. Bb3 {[%clk 0:02:35]} 17... O-O {[%clk 0:02:32.5]} 18. O-O
{[%clk 0:02:32.8]} 18... Rfb8 {[%clk 0:02:32.9]} 19. Qg4 {[%clk 0:01:38.9]}
19... g6 {[%clk 0:02:04.1]} 20. h3 {[%clk 0:01:18.7]} 20... h5 {[%clk 0:01:33]}
21. Qg3 {[%clk 0:01:13.9]} 21... e4 {[%clk 0:01:27.7]} 22. Nxe4 {[%clk
0:01:06.6]} 22... Ne2+ {[%clk 0:01:27.1]} 0-1